lending/lending_fUSD_20241007
["ID","MTS","AMOUNT","RATE_DAILY","PERIOD"]
[339993921,1728295833373,-7500.0,0.0003558,2]
[339993922,1728295833382,-8296.44509016,0.00035606,6]
[339993923,1728295833392,-181.87648678,0.00035615,7]
[339993924,1728295833402,-500.0,0.00035616,2]
[339993925,1728295833412,-500.0,0.00035616,2]
[339993926,1728295833422,-500.0,0.00035616,2]
[339993927,1728295833432,-500.0,0.00035616,2]
[339993928,1728295833441,-500.0,0.00035616,2]
[339993929,1728295833452,-500.0,0.00035616,2]
[339993930,1728295833462,-254.81153883,0.00035616,2]
[339993931,1728295833472,-500.0,0.00035616,2]
[339993932,1728295833482,-500.0,0.00035616,2]
[339993933,1728295833492,-879.25,0.00035616,2]
[339993934,1728295833502,-500.0,0.00035616,2]
[339993935,1728295833511,-500.0,0.00035616,2]
[339993936,1728295833521,-500.0,0.00035616,2]
[339993937,1728295833531,-500.0,0.00035616,2]
[339993938,1728295833541,-832.07,0.00035616,2]
[339993939,1728295833551,-500.0,0.00035616,2]
[339993940,1728295833560,-500.0,0.00035616,2]
[339993941,1728295833571,-500.0,0.00035616,2]
[339993942,1728295833582,-500.0,0.00035616,2]
[339993943,1728295833592,-500.0,0.00035616,2]
[339993944,1728295833602,-500.0,0.00035616,2]
[339993945,1728295833613,-632.21,0.00035616,2]
[339993946,1728295833623,-500.0,0.00035616,2]
[339993947,1728295833633,-767.12,0.00035616,2]
[339993948,1728295833642,-1284.48,0.00035616,2]
[339993949,1728295833652,-500.0,0.00035616,2]
[339993950,1728295833662,-500.0,0.00035616,2]
[339993951,1728295833672,-500.0,0.00035616,2]
[339993952,1728295833682,-500.0,0.00035616,2]
[339993953,1728295833692,-1116.95,0.00035616,2]
[339993954,1728295833702,-500.0,0.00035616,2]
[339993955,1728295833712,-500.0,0.00035616,2]
[339993956,1728295833722,-500.0,0.00035616,2]
[339993957,1728295833733,-764.7,0.00035616,2]
[339993958,1728295833743,-500.0,0.00035616,2]
[339993959,1728295833754,-775.76,0.00035616,2]
[339993960,1728295833768,-500.0,0.00035616,2]
[339993961,1728295833782,-500.0,0.00035616,2]
[339993962,1728295833796,-500.0,0.00035616,2]
[339993963,1728295833810,-500.0,0.00035616,2]
[339993964,1728295833823,-2242.98,0.00035616,2]
[339993965,1728295833835,-500.0,0.00035616,2]
[339993966,1728295833849,-500.0,0.00035616,2]
[339993967,1728295833863,-500.0,0.00035616,2]
[339993968,1728295833876,-500.0,0.00035616,2]
[339993969,1728295833890,-578.66,0.00035616,2]
[339993970,1728295833903,-500.0,0.00035616,2]
[339993971,1728295833915,-317.38,0.00035616,2]
[339993972,1728295833929,-500.0,0.00035616,2]
[339993973,1728295833943,-500.0,0.00035616,2]
[339993974,1728295833954,-500.0,0.00035616,2]
[339993975,1728295833966,-500.0,0.00035616,2]
[339993976,1728295833978,-560.68,0.00035616,2]
[339993977,1728295833990,-500.0,0.00035616,2]
[339993978,1728295834003,-500.0,0.00035616,2]
[339993979,1728295834017,-500.0,0.00035616,2]
[339993980,1728295834029,-500.0,0.00035616,2]
[339993981,1728295834042,-500.0,0.00035616,2]
[339993982,1728295834053,-500.0,0.00035616,2]
[339993983,1728295834064,-500.0,0.00035616,2]
[339993984,1728295834078,-500.0,0.00035616,2]
[339993985,1728295834091,-850.87,0.00035616,2]
[339993986,1728295834106,-500.0,0.00035616,2]
[339993987,1728295834120,-560.68,0.00035616,2]
[339993988,1728295834134,-500.0,0.00035616,2]
[339993989,1728295834147,-500.0,0.00035616,2]
[339993990,1728295834161,-500.0,0.00035616,2]
[339993991,1728295834176,-500.0,0.00035616,2]
[339993992,1728295834189,-500.0,0.00035616,2]
[339993993,1728295834200,-500.0,0.00035616,2]
[339993994,1728295834212,-500.0,0.00035616,2]
[339993995,1728295834223,-500.0,0.00035616,2]
[339993996,1728295834234,-500.0,0.00035616,2]
[339993997,1728295834246,-500.0,0.00035616,2]
[339993998,1728295834260,-500.0,0.00035616,2]
[339993999,1728295834272,-500.0,0.00035616,2]
[339994000,1728295834285,-500.0,0.00035616,2]
[339994001,1728295834295,-500.0,0.00035616,2]
[339994002,1728295834309,-500.0,0.00035616,2]
[339994003,1728295834320,-500.0,0.00035616,2]
[339994004,1728295834332,-500.0,0.00035616,2]
[339994005,1728295834344,-500.0,0.00035616,2]
[339994006,1728295834355,-589.58,0.00035616,2]
[339994007,1728295834367,-660.06,0.00035616,2]
[339994008,1728295834378,-500.0,0.00035616,2]
[339994009,1728295834389,-500.0,0.00035616,2]
[339994010,1728295834401,-500.0,0.00035616,2]
[339994011,1728295834413,-500.0,0.00035616,2]
[339994012,1728295834425,-500.0,0.00035616,2]
[339994013,1728295834437,-500.0,0.00035616,2]
[339994014,1728295834450,-500.0,0.00035616,2]
[339994015,1728295834461,-500.0,0.00035616,2]
[339994016,1728295834473,-500.0,0.00035616,2]
[339994017,1728295834484,-504.02,0.00035616,2]
[339994018,1728295834496,-500.0,0.00035616,2]
[339994019,1728295834507,-500.0,0.00035616,2]
[339994020,1728295834517,-500.0,0.00035616,2]
[339994021,1728295834529,-556.04,0.00035616,2]
[339994022,1728295834540,-500.0,0.00035616,2]
[339994023,1728295834551,-500.0,0.00035616,2]
[339994024,1728295834562,-995.54,0.00035616,7]
[339994025,1728295834574,-500.0,0.00035616,2]
[339994026,1728295834585,-587.38,0.00035616,2]
[339994027,1728295834597,-500.0,0.00035616,2]
[339994028,1728295834609,-500.0,0.00035616,2]
[339994029,1728295834621,-563.11,0.00035616,2]
[339994030,1728295834633,-500.0,0.00035616,2]
[339994031,1728295834644,-500.0,0.00035616,2]
[339994032,1728295834656,-711.71,0.00035616,2]
[339994033,1728295834667,-646.3,0.00035616,2]
[339994034,1728295834679,-500.0,0.00035616,2]
[339994035,1728295834691,-511.23,0.00035616,2]
[339994036,1728295834702,-500.0,0.00035616,2]
[339994037,1728295834714,-500.0,0.00035616,2]
[339994038,1728295834725,-619.93,0.00035616,2]
[339994039,1728295834736,-500.0,0.00035616,2]
[339994040,1728295834747,-500.0,0.00035616,2]
[339994041,1728295834759,-500.0,0.00035616,2]
[339994042,1728295834770,-500.0,0.00035616,2]
[339994043,1728295834781,-500.0,0.00035616,2]
[339994044,1728295834792,-530.54,0.00035616,2]
[339994045,1728295834803,-500.0,0.00035616,2]
[339994046,1728295834814,-500.0,0.00035616,2]
[339994047,1728295834826,-669.98,0.00035616,2]
[339994048,1728295834837,-500.0,0.00035616,2]
[339994049,1728295834849,-500.0,0.00035616,2]
[339994050,1728295834860,-500.0,0.00035616,2]
[339994051,1728295834871,-618.29,0.00035616,2]
[339994052,1728295834882,-526.83,0.00035616,2]
[339994053,1728295834893,-560.05,0.00035616,2]
[339994054,1728295834905,-500.0,0.00035616,2]
[339994055,1728295834916,-530.63,0.00035616,2]
[339994056,1728295834927,-500.0,0.00035616,2]
[339994057,1728295834938,-736.68,0.00035616,2]
[339994058,1728295834947,-500.0,0.00035616,2]
[339994059,1728295834957,-500.0,0.00035616,2]
[339994060,1728295834966,-500.0,0.00035616,2]
[339994061,1728295834975,-524.29,0.00035616,2]
[339994062,1728295835118,-500.0,0.00035616,2]
[339994063,1728295835134,-500.0,0.00035616,2]
[339994064,1728295835143,-500.0,0.00035616,2]
[339994065,1728295835153,-500.0,0.00035616,2]
[339994066,1728295835162,-500.0,0.00035616,2]
[339994067,1728295835172,-500.0,0.00035616,2]
[339994068,1728295835181,-636.06,0.00035616,2]
[339994069,1728295835190,-280.07060248,0.00035616,2]
[339994070,1728295835200,-889.03,0.00035616,2]
[339994071,1728295835209,-500.0,0.00035616,2]
[339994072,1728295835218,-500.0,0.00035616,2]
[339994073,1728295835227,-600.6,0.00035616,2]
[339994074,1728295835236,-500.0,0.00035616,2]
[339994075,1728295835245,-500.0,0.00035616,2]
[339994076,1728295835255,-810.09,0.00035616,2]
[339994077,1728295835264,-1346.29,0.00035616,2]
[339994078,1728295835274,-500.0,0.00035616,2]
[339994079,1728295835283,-654.7,0.00035616,2]
[339994080,1728295835293,-500.0,0.00035616,2]
[339994081,1728295835302,-500.0,0.00035616,2]
[339994082,1728295835311,-500.0,0.00035616,2]
[339994083,1728295835321,-500.0,0.00035616,2]
[339994084,1728295835330,-556.24,0.00035616,2]
[339994085,1728295835340,-500.0,0.00035616,2]
[339994086,1728295835349,-500.0,0.00035616,2]
[339994087,1728295835358,-500.0,0.00035616,2]
[339994088,1728295835367,-568.77,0.00035616,2]
[339994089,1728295835377,-150.0,0.0003562,2]
[339994090,1728295835386,-150.0,0.00035656,2]
[339994091,1728295835395,-1037.05563627,0.0003566,6]
[339994092,1728295835403,-150.0,0.00035665,2]
[339994093,1728295835413,-11407.611999,0.0003567,6]
[339994094,1728295835422,-26029.4536729,0.0003567,6]
[339994095,1728295835431,-280.95,0.0003567,2]
[339994096,1728295835440,-280.95,0.0003567,2]
[339994097,1728295835450,-150.91573611,0.00035673,5]
[339994098,1728295835458,-150.91514448,0.00035673,5]
[339994099,1728295835467,-151.37960793,0.00035673,5]
[339994100,1728295835476,-471.07910621,0.00035673,9]
[339994101,1728295835485,-500.0,0.00035679,2]
[339994102,1728295835494,-245000.0,0.0003568,2]
[339994103,1728295835503,-500.0,0.0003568,2]
[339994104,1728295835512,-1200.0,0.000357,13]
[339994105,1728295835521,-600.0,0.00035712,2]
[339994106,1728295835530,-150.0,0.00035716,2]
[339994107,1728295835539,-150.0,0.00035722,2]
[339994108,1728295835548,-471.0791062,0.00035732,10]
[339994109,1728295835557,-150.0,0.00035749,2]
[339994110,1728295835567,-10411.7814692,0.0003576,6]
[339994111,1728295835585,-280.95,0.0003576,2]
[339994112,1728295835594,-150.0,0.00035769,2]
[339994113,1728295835603,-36441.2351421,0.0003577,6]
[339994114,1728295835612,-280.95,0.0003577,2]
[339994115,1728295835621,-280.95,0.0003577,2]
[339994116,1728295835630,-150.8518554,0.00035773,5]
[339994117,1728295835640,-150.0,0.00035773,2]
[339994118,1728295835650,-150.0,0.00035774,2]
[339994119,1728295835659,-151.0,0.0003578,7]
[339994120,1728295835669,-32014.35989029,0.0003578,6]
[339994121,1728295835684,-1911.4887306,0.0003578,6]
[339994122,1728295835695,-633.08,0.0003578,6]
[339994123,1728295835706,-3835.99504729,0.0003578,6]
[339994124,1728295835717,-961.85,0.0003578,6]
[339994125,1728295835757,-21196.1736714,0.0003578,6]
[339994128,1728295837801,-605.87,0.00035616,2]
[339994129,1728295837810,-150.0,0.00035778,2]
[339994130,1728295837820,-50.714965,0.0003578,6]
[339994131,1728295837832,-712.43225591,0.0003578,6]
[339994132,1728295837844,-12839.8,0.0003578,6]
[339994133,1728295837855,-16741.38379213,0.0003578,6]
[339994134,1728295837867,-1605.98,0.0003578,6]
[339994135,1728295837992,-2549.55900004,0.0003578,6]
[339994136,1728295838003,-2457.94104147,0.0003578,6]
[339994137,1728295838015,-6408.20701,0.0003578,6]
[339994138,1728295838095,-198.84928787,0.0003578,6]
[339994139,1728295838106,-280.95,0.0003578,2]
[339994140,1728295838116,-280.95,0.0003578,2]
[339994141,1728295838125,-280.95,0.0003578,2]
[339994142,1728295838134,-280.95,0.0003578,2]
[339994143,1728295838145,-150.0,0.00035787,2]
[339994144,1728295838154,-500.0,0.00035789,2]
[339994145,1728295838163,-785.37059898,0.0003579,7]
[339994146,1728295838186,-2652.43912402,0.0003579,7]
[339994147,1728295838195,-567.53653698,0.0003579,7]
[339994148,1728295838207,-2870.27318602,0.0003579,7]
[339994149,1728295838216,-151.0,0.0003579,7]
[339994150,1728295838226,-1215.45171493,0.0003579,7]
[339994151,1728295838237,-6158.72399868,0.0003579,7]
[339994152,1728295838248,-484.43905378,0.0003579,7]
[339994153,1728295838268,-1116.50326628,0.0003579,7]
[339994159,1728295839802,-1024.88196633,0.0003579,7]
[339994160,1728295839812,-151.0,0.0003579,7]
[339994161,1728295839822,-10000.0,0.0003579,7]
[339994162,1728295839833,-10000.0,0.0003579,7]
[339994163,1728295839843,-10000.0,0.0003579,7]
[339994164,1728295839852,-10000.0,0.0003579,7]
[339994165,1728295839862,-1921.901947,0.0003579,7]
[339994166,1728295839871,-1921.901947,0.0003579,7]
[339994167,1728295839880,-151.0,0.0003579,7]
[339994168,1728295839889,-151.0,0.0003579,7]
[339994169,1728295839898,-151.0,0.0003579,7]
[339994170,1728295839907,-471.0791062,0.0003579,10]
[339994171,1728295839917,-151.0,0.0003579,7]
[339994172,1728295839925,-14387.47802209,0.0003579,60]
[339994173,1728295839936,-462.7030002,0.0003579,60]
[339994174,1728295840024,-4285.7862628,0.0003579,60]
[339994175,1728295840035,-291.88343201,0.0003579,60]
[339994176,1728295840046,-5737.98269495,0.0003579,60]
[339994177,1728295840057,-272.8248,0.0003579,60]
[339994178,1728295840069,-273.80906806,0.0003579,60]
[339994179,1728295840080,-1418.0305396,0.0003579,60]
[339994180,1728295840092,-3488.61724564,0.0003579,60]
[339994181,1728295840106,-374.07477111,0.0003579,60]
[339994182,1728295840117,-5664.18526832,0.0003579,60]
[339994183,1728295840136,-500.0,0.00035616,7]
[339994184,1728295840149,-413.16801958,0.00035616,7]
[339994409,1728295843254,-20845.038,0.00035416,2]
[339994410,1728295843263,-40.89198042,0.00035616,7]
[339994411,1728295843272,-500.0,0.00035616,2]
[339994412,1728295843282,-539.65,0.00035616,2]
[339994413,1728295843290,-569.58,0.0003578,3]
[339994414,1728295843300,-118342.62489522,0.0003579,60]
[339994415,1728295843309,-2400.0,0.000358,13]
[339994416,1728295843318,-150.0,0.00035806,2]
[339994417,1728295843329,-150.0,0.00035823,2]
[339994418,1728295843338,-150.0,0.00035847,2]
[339994419,1728295843347,-150.0,0.00035848,2]
[339994420,1728295843355,-5205.89073458,0.00035851,6]
[339994421,1728295843364,-150.0,0.00035856,2]
[339994422,1728295843374,-15617.6722037,0.0003586,6]
[339994423,1728295843383,-280.95,0.0003586,2]
[339994424,1728295843393,-5205.89073458,0.00035869,6]
[339994429,1728295843425,-5205.89073458,0.0003587,6]
[339994430,1728295843520,-225.35451009,0.00035879,2]
[339994432,1728295843529,-4119.2262123,0.00035879,2]
[339994433,1728295843539,-280.95,0.0003588,2]
[339994435,1728295843548,-280.95,0.0003588,2]
[339994436,1728295843558,-264.0,0.00035884,5]
[339994438,1728295843567,-500.0,0.00035889,2]
[339994440,1728295843579,-500.0,0.0003589,2]
[339994441,1728295843588,-500.0,0.0003589,2]
[339994443,1728295843598,-500.0,0.0003589,2]
[339994445,1728295843607,-500.0,0.0003589,2]
[339994446,1728295843617,-151.0,0.0003589,7]
[339994448,1728295843626,-500.0,0.0003589,2]
[339994449,1728295843635,-500.0,0.0003589,2]
[339994451,1728295843644,-500.0,0.0003589,2]
[339994453,1728295843653,-879.25,0.0003589,2]
[339994454,1728295843662,-500.0,0.0003589,2]
[339994456,1728295843671,-500.0,0.0003589,2]
[339994457,1728295843681,-500.0,0.0003589,2]
[339994459,1728295843691,-151.0,0.0003589,7]
[339994461,1728295843701,-500.0,0.0003589,2]
[339994462,1728295843710,-832.07,0.0003589,2]
[339994464,1728295843719,-500.0,0.0003589,2]
[339994466,1728295843729,-500.0,0.0003589,2]
[339994467,1728295843738,-500.0,0.0003589,2]
[339994469,1728295843747,-500.0,0.0003589,2]
[339994470,1728295843756,-500.0,0.0003589,2]
[339994472,1728295843766,-500.0,0.0003589,2]
[339994474,1728295843775,-151.0,0.0003589,7]
[339994475,1728295843785,-767.12,0.0003589,2]
[339994477,1728295843794,-1284.48,0.0003589,2]
[339994479,1728295843804,-500.0,0.0003589,2]
[339994480,1728295843813,-500.0,0.0003589,2]
[339994482,1728295843822,-500.0,0.0003589,2]
[339994483,1728295843833,-500.0,0.0003589,2]
[339994485,1728295843842,-500.0,0.0003589,2]
[339994486,1728295843851,-1116.95,0.0003589,2]
[339994488,1728295843861,-500.0,0.0003589,2]
[339994490,1728295843870,-500.0,0.0003589,2]
[339994491,1728295843879,-764.7,0.0003589,2]
[339994492,1728295843888,-500.0,0.0003589,2]
[339994493,1728295843897,-775.76,0.0003589,2]
[339994494,1728295843906,-500.0,0.0003589,2]
[339994495,1728295843915,-500.0,0.0003589,2]
[339994496,1728295843924,-430.31150462,0.0003589,2]
[339994497,1728295843933,-500.0,0.0003589,2]
[339994498,1728295843943,-151.0,0.0003589,7]
[339994499,1728295843952,-2242.98,0.0003589,2]
[339994500,1728295843961,-500.0,0.0003589,2]
[339994501,1728295843970,-500.0,0.0003589,2]
[339994502,1728295843979,-500.0,0.0003589,2]
[339994503,1728295843988,-500.0,0.0003589,2]
[339994504,1728295843997,-578.66,0.0003589,2]
[339994505,1728295844006,-500.0,0.0003589,2]
[339994506,1728295844015,-317.38,0.0003589,2]
[339994507,1728295844024,-500.0,0.0003589,2]
[339994508,1728295844033,-349.84586417,0.0003589,2]
[339994509,1728295844042,-500.0,0.0003589,2]
[339994510,1728295844051,-500.0,0.0003589,2]
[339994511,1728295844060,-560.68,0.0003589,2]
[339994512,1728295844069,-500.0,0.0003589,2]
[339994513,1728295844079,-500.0,0.0003589,2]
[339994514,1728295844100,-500.0,0.0003589,2]
[339994515,1728295844110,-500.0,0.0003589,2]
[339994516,1728295844119,-500.0,0.0003589,2]
[339994517,1728295844129,-500.0,0.0003589,2]
[339994518,1728295844139,-500.0,0.0003589,2]
[339994519,1728295844148,-500.0,0.0003589,2]
[339994520,1728295844158,-850.87,0.0003589,2]
[339994521,1728295844166,-500.0,0.0003589,2]
[339994522,1728295844176,-560.68,0.0003589,2]
[339994523,1728295844186,-500.0,0.0003589,2]
[339994524,1728295844195,-500.0,0.0003589,2]
[339994525,1728295844204,-500.0,0.0003589,2]
[339994526,1728295844213,-500.0,0.0003589,2]
[339994527,1728295844222,-500.0,0.0003589,2]
[339994528,1728295844231,-500.0,0.0003589,2]
[339994529,1728295844240,-500.0,0.0003589,2]
[339994530,1728295844250,-500.0,0.0003589,2]
[339994531,1728295844259,-500.0,0.0003589,2]
[339994532,1728295844269,-500.0,0.0003589,2]
[339994533,1728295844278,-500.0,0.0003589,2]
[339994534,1728295844288,-500.0,0.0003589,2]
[339994535,1728295844297,-3437.809723,0.0003589,7]
[339994536,1728295844306,-500.0,0.0003589,2]
[339994537,1728295844315,-500.0,0.0003589,2]
[339994538,1728295844323,-500.0,0.0003589,2]
[339994539,1728295844334,-3437.809723,0.0003589,7]
[339994540,1728295844343,-500.0,0.0003589,2]
[339994541,1728295844353,-500.0,0.0003589,2]
[339994542,1728295844362,-589.58,0.0003589,2]
[339994543,1728295844371,-660.06,0.0003589,2]
[339994544,1728295844380,-500.0,0.0003589,2]
[339994545,1728295844390,-500.0,0.0003589,2]
[339994546,1728295844399,-500.0,0.0003589,2]
[339994547,1728295844408,-500.0,0.0003589,2]
[339994548,1728295844417,-500.0,0.0003589,2]
[339994549,1728295844426,-500.0,0.0003589,2]
[339994550,1728295844435,-500.0,0.0003589,2]
[339994551,1728295844445,-500.0,0.0003589,2]
[339994552,1728295844454,-500.0,0.0003589,2]
[339994553,1728295844463,-504.02,0.0003589,2]
[339994554,1728295844472,-500.0,0.0003589,2]
[339994555,1728295844481,-500.0,0.0003589,2]
[339994556,1728295844490,-500.0,0.0003589,2]
[339994557,1728295844499,-500.0,0.0003589,2]
[339994558,1728295844508,-500.0,0.0003589,2]
[339994559,1728295844518,-587.38,0.0003589,2]
[339994560,1728295844527,-10000.0,0.0003589,7]
[339994561,1728295844536,-500.0,0.0003589,2]
[339994562,1728295844545,-151.0,0.0003589,7]
[339994563,1728295844554,-10000.0,0.0003589,7]
[339994564,1728295844563,-500.0,0.0003589,2]
[339994565,1728295844572,-10000.0,0.0003589,7]
[339994566,1728295844582,-500.0,0.0003589,2]
[339994567,1728295844592,-10000.0,0.0003589,7]
[339994568,1728295844601,-500.0,0.0003589,2]
[339994569,1728295844611,-10000.0,0.0003589,7]
[339994570,1728295844620,-711.71,0.0003589,2]
[339994571,1728295844630,-646.3,0.0003589,2]
[339994572,1728295844638,-500.0,0.0003589,2]
[339994573,1728295844646,-511.23,0.0003589,2]
[339994574,1728295844655,-500.0,0.0003589,2]
[339994575,1728295844664,-500.0,0.0003589,2]
[339994576,1728295844673,-619.93,0.0003589,2]
[339994577,1728295844682,-500.0,0.0003589,2]
[339994578,1728295844690,-500.0,0.0003589,2]
[339994579,1728295844699,-500.0,0.0003589,2]
[339994580,1728295844709,-500.0,0.0003589,2]
[339994581,1728295844719,-500.0,0.0003589,2]
[339994582,1728295844728,-530.54,0.0003589,2]
[339994583,1728295844738,-500.0,0.0003589,2]
[339994584,1728295844748,-500.0,0.0003589,2]
[339994585,1728295844758,-669.98,0.0003589,2]
[339994586,1728295844768,-500.0,0.0003589,2]
[339994587,1728295844777,-500.0,0.0003589,2]
[339994588,1728295844787,-1921.901947,0.0003589,7]
[339994589,1728295844797,-500.0,0.0003589,2]
[339994590,1728295844806,-618.29,0.0003589,2]
[339994591,1728295844815,-1921.901947,0.0003589,7]
[339994592,1728295844825,-526.83,0.0003589,2]
[339994593,1728295844836,-560.05,0.0003589,2]
[339994594,1728295844846,-151.0,0.0003589,7]
[339994595,1728295844855,-500.0,0.0003589,2]
[339994596,1728295844865,-530.63,0.0003589,2]
[339994597,1728295844874,-500.0,0.0003589,2]
[339994598,1728295844883,-736.68,0.0003589,2]
[339994599,1728295844892,-500.0,0.0003589,2]
[339994600,1728295844902,-500.0,0.0003589,2]
[339994601,1728295844911,-500.0,0.0003589,2]
[339994602,1728295844920,-524.29,0.0003589,2]
[339994603,1728295844929,-500.0,0.0003589,2]
[339994604,1728295844939,-500.0,0.0003589,2]
[339994605,1728295844948,-290.80024197,0.0003589,2]
[339994606,1728295844958,-500.0,0.0003589,2]
[339994607,1728295844967,-151.0,0.0003589,7]
[339994608,1728295844976,-500.0,0.0003589,2]
[339994609,1728295844985,-500.0,0.0003589,2]
[339994610,1728295844995,-636.06,0.0003589,2]
[339994611,1728295845004,-889.03,0.0003589,2]
[339994612,1728295845014,-500.0,0.0003589,2]
[339994613,1728295845023,-500.0,0.0003589,2]
[339994614,1728295845033,-600.6,0.0003589,2]
[339994615,1728295845043,-500.0,0.0003589,2]
[339994616,1728295845052,-500.0,0.0003589,2]
[339994617,1728295845061,-810.09,0.0003589,2]
[339994618,1728295845070,-1346.29,0.0003589,2]
[339994619,1728295845080,-500.0,0.0003589,2]
[339994620,1728295845090,-654.7,0.0003589,2]
[339994621,1728295845102,-500.0,0.0003589,2]
[339994622,1728295845111,-500.0,0.0003589,2]
[339994623,1728295845121,-500.0,0.0003589,2]
[339994624,1728295845130,-500.0,0.0003589,2]
[339994625,1728295845140,-556.24,0.0003589,2]
[339994626,1728295845150,-500.0,0.0003589,2]
[339994627,1728295845160,-500.0,0.0003589,2]
[339994628,1728295845170,-500.0,0.0003589,2]
[339994629,1728295845179,-568.77,0.0003589,2]
[339994630,1728295845189,-605.87,0.0003589,2]
[339994631,1728295845198,-954.06,0.0003589,7]
[339994632,1728295845208,-500.0,0.0003589,2]
[339994633,1728295845218,-539.65,0.0003589,2]
[339994634,1728295845228,-150.0,0.00035892,2]
[339994635,1728295845237,-150.0,0.00035896,2]
[339994636,1728295845247,-154.46774324,0.000359,8]
[339994637,1728295845257,-279.504056,0.000359,7]
[339994638,1728295845266,-151.0,0.000359,7]
[339994639,1728295845276,-151.0,0.000359,7]
[339994640,1728295845286,-151.0,0.000359,7]
[339994641,1728295845296,-151.0,0.000359,7]
[339994642,1728295845305,-3600.0,0.000359,13]
[339994643,1728295845314,-150.0,0.00035931,2]
[339994644,1728295845323,-150.0,0.00035955,2]
[339994645,1728295845334,-150.0,0.0003597,2]
[339994646,1728295845343,-151.0,0.0003599,7]
[339994647,1728295845352,-151.0,0.0003599,7]
[339994648,1728295845361,-3437.809723,0.0003599,7]
[339994649,1728295845370,-3437.809723,0.0003599,7]
[339994650,1728295845380,-10000.0,0.0003599,7]
[339994651,1728295845389,-10000.0,0.0003599,7]
[339994652,1728295845399,-10000.0,0.0003599,7]
[339994653,1728295845408,-10000.0,0.0003599,7]
[339994654,1728295845417,-10000.0,0.0003599,7]
[339994655,1728295845427,-151.0,0.0003599,7]
[339994656,1728295845436,-151.0,0.0003599,7]
[339994657,1728295845446,-500.0,0.00035999,2]
[339994658,1728295845455,-250.0,0.00035999,2]
[339994659,1728295845464,-50000.0,0.00036,26]
[339994660,1728295845473,-50000.0,0.00036,36]
[339994661,1728295845483,-248.65731,0.00036,7]
[339994662,1728295845492,-151.0,0.00036,7]
[339994663,1728295845501,-151.0,0.00036,7]
[339994664,1728295845510,-151.0,0.00036,7]
[339994665,1728295845519,-151.0,0.00036,7]
[339994667,1728295845529,-3437.809723,0.00036,7]
[339994668,1728295845538,-3437.809723,0.00036,7]
[339994669,1728295845547,-10000.0,0.00036,7]
[339994670,1728295845556,-151.0,0.00036,7]
[339994671,1728295845565,-10000.0,0.00036,7]
[339994672,1728295845574,-10000.0,0.00036,7]
[339994673,1728295845583,-10000.0,0.00036,7]
[339994674,1728295845594,-10000.0,0.00036,7]
[339994675,1728295845604,-227.0,0.00036,2]
[339994676,1728295845613,-1921.901947,0.00036,7]
[339994677,1728295845623,-1921.901947,0.00036,7]
[339994678,1728295845633,-151.0,0.00036,7]
[339994679,1728295845643,-150.0,0.00036013,2]